Workbook

Sheet งบประมาณงานแต่งงาน
B2: ลิช่า + แดเนียล ผูกปม
B5: ประเภท | C5: ค่าใช้จ่ายโดยประมาณ | D5: ค่าใช้จ่ายตามจริง | E5: ผลต่าง | F5: % งบประมาณ | J5: ไม่เรียงลำดับ | K5: ค่าใช้จ่ายโดยประมาณ | L5: ค่าใช้จ่ายตามจริง | M5: ค่าใช้จ่ายโดยประมาณ - ค่าลำดับ | N5: อันดับ | O5: # | P5: เรียง
B6: =P6 -> แผนกต้อนรับ | C6: =VLOOKUP(TBL_Summary[[#This Row],[ประเภท]],TBL_RankingData,2,FALSE) -> ฿14,500 | D6: =IF(VLOOKUP(TBL_Summary[[#This Row],[ประเภท]],TBL_RankingData,3,FALSE)=0,"",VLOOKUP(TBL_Summary[[#This Row],[ประเภท]],TBL_RankingData,3,FALSE)) -> ฿12,800 | E6: =IF(OR(TBL_Summary[[#This Row],[ค่าใช้จ่ายโดยประมาณ]]="",TBL_Summary[[#This Row],[ค่าใช้จ่ายตามจริง]]=""),"",TBL_Summary[[#This Row],[ค่าใช้จ่ายโดยประมาณ]]-TBL_Summary[[#This Row],[ค่าใช้จ่ายตามจริง]]) -> ฿1,700 | F6: =TBL_Summary[[#This Row],[ค่าใช้จ่ายโดยประมาณ]]/SUM(TBL_Summary[ค่าใช้จ่ายโดยประมาณ]) -> 48.7% | J6: แผนกต้อนรับ | K6: =TBL_Reception[[#Totals],[โดยประมาณ]] -> 14500 | L6: =TBL_Reception[[#Totals],[ตามจริง]] -> 12800 | M6: =K6-O6/100 -> 14499.99 | N6: =_xlfn.RANK.AVG(M6,$M$6:$M$15) -> 1 | O6: 1 | P6: =INDEX(TBL_RankingData,MATCH(O6,$N$6:$N$15,0),1) -> แผนกต้อนรับ
B7: =P7 -> เครื่องแต่งกาย | C7: =VLOOKUP(TBL_Summary[[#This Row],[ประเภท]],TBL_RankingData,2,FALSE) -> ฿4,000 | D7: =IF(VLOOKUP(TBL_Summary[[#This Row],[ประเภท]],TBL_RankingData,3,FALSE)=0,"",VLOOKUP(TBL_Summary[[#This Row],[ประเภท]],TBL_RankingData,3,FALSE)) -> ฿2,900 | E7: =IF(OR(TBL_Summary[[#This Row],[ค่าใช้จ่ายโดยประมาณ]]="",TBL_Summary[[#This Row],[ค่าใช้จ่ายตามจริง]]=""),"",TBL_Summary[[#This Row],[ค่าใช้จ่ายโดยประมาณ]]-TBL_Summary[[#This Row],[ค่าใช้จ่ายตามจริง]]) -> ฿1,100 | F7: =TBL_Summary[[#This Row],[ค่าใช้จ่ายโดยประมาณ]]/SUM(TBL_Summary[ค่าใช้จ่ายโดยประมาณ]) -> 13.4% | J7: เครื่องแต่งกาย | K7: =TBL_Attire[[#Totals],[โดยประมาณ]] -> 4000 | L7: =TBL_Attire[[#Totals],[ตามจริง]] -> 2900 | M7: =K7-O7/100 -> 3999.98 | N7: 2 | O7: 2 | P7: เครื่องแต่งกาย
B8: ดอกไม้และการตกแต่ง | C8: =VLOOKUP(TBL_Summary[[#This Row],[ประเภท]],TBL_RankingData,2,FALSE) -> ฿3,000 | D8: =IF(VLOOKUP(TBL_Summary[[#This Row],[ประเภท]],TBL_RankingData,3,FALSE)=0,"",VLOOKUP(TBL_Summary[[#This Row],[ประเภท]],TBL_RankingData,3,FALSE)) ->  | E8: =IF(OR(TBL_Summary[[#This Row],[ค่าใช้จ่ายโดยประมาณ]]="",TBL_Summary[[#This Row],[ค่าใช้จ่ายตามจริง]]=""),"",TBL_Summary[[#This Row],[ค่าใช้จ่ายโดยประมาณ]]-TBL_Summary[[#This Row],[ค่าใช้จ่ายตามจริง]]) ->  | F8: =TBL_Summary[[#This Row],[ค่าใช้จ่ายโดยประมาณ]]/SUM(TBL_Summary[ค่าใช้จ่ายโดยประมาณ]) -> 10.1% | J8: ดอกไม้และการตกแต่ง | K8: =TBL_FlowersAndDecor[[#Totals],[โดยประมาณ]] -> 3000 | L8: =TBL_FlowersAndDecor[[#Totals],[ตามจริง]] -> 0 | M8: 2999.97 | N8: 3 | O8: 3 | P8: ดอกไม้และการตกแต่ง
B9: รูปถ่ายและวิดีโอ | C9: =VLOOKUP(TBL_Summary[[#This Row],[ประเภท]],TBL_RankingData,2,FALSE) -> ฿2,500 | D9: =IF(VLOOKUP(TBL_Summary[[#This Row],[ประเภท]],TBL_RankingData,3,FALSE)=0,"",VLOOKUP(TBL_Summary[[#This Row],[ประเภท]],TBL_RankingData,3,FALSE)) ->  | E9: =IF(OR(TBL_Summary[[#This Row],[ค่าใช้จ่ายโดยประมาณ]]="",TBL_Summary[[#This Row],[ค่าใช้จ่ายตามจริง]]=""),"",TBL_Summary[[#This Row],[ค่าใช้จ่ายโดยประมาณ]]-TBL_Summary[[#This Row],[ค่าใช้จ่ายตามจริง]]) ->  | F9: =TBL_Summary[[#This Row],[ค่าใช้จ่ายโดยประมาณ]]/SUM(TBL_Summary[ค่าใช้จ่ายโดยประมาณ]) -> 8.4% | J9: ดนตรี | K9: =TBL_Music[[#Totals],[โดยประมาณ]] -> 1800 | L9: =TBL_Music[[#Totals],[ตามจริง]] -> 0 | M9: 1799.96 | N9: 5 | O9: 4 | P9: รูปถ่ายและวิดีโอ
B10: ดนตรี | C10: =VLOOKUP(TBL_Summary[[#This Row],[ประเภท]],TBL_RankingData,2,FALSE) -> ฿1,800 | D10: =IF(VLOOKUP(TBL_Summary[[#This Row],[ประเภท]],TBL_RankingData,3,FALSE)=0,"",VLOOKUP(TBL_Summary[[#This Row],[ประเภท]],TBL_RankingData,3,FALSE)) ->  | E10: =IF(OR(TBL_Summary[[#This Row],[ค่าใช้จ่ายโดยประมาณ]]="",TBL_Summary[[#This Row],[ค่าใช้จ่ายตามจริง]]=""),"",TBL_Summary[[#This Row],[ค่าใช้จ่ายโดยประมาณ]]-TBL_Summary[[#This Row],[ค่าใช้จ่ายตามจริง]]) ->  | F10: =TBL_Summary[[#This Row],[ค่าใช้จ่ายโดยประมาณ]]/SUM(TBL_Summary[ค่าใช้จ่ายโดยประมาณ]) -> 6.1% | J10: รูปถ่ายและวิดีโอ | K10: =TBL_PhotographsAndVideo[[#Totals],[โดยประมาณ]] -> 2500 | L10: =TBL_PhotographsAndVideo[[#Totals],[ตามจริง]] -> 0 | M10: 2499.95 | N10: 4 | O10: 5 | P10: ดนตรี
B11: ของชำร่วยและของขวัญ | C11: =VLOOKUP(TBL_Summary[[#This Row],[ประเภท]],TBL_RankingData,2,FALSE) -> ฿1,100 | D11: =IF(VLOOKUP(TBL_Summary[[#This Row],[ประเภท]],TBL_RankingData,3,FALSE)=0,"",VLOOKUP(TBL_Summary[[#This Row],[ประเภท]],TBL_RankingData,3,FALSE)) ->  | E11: =IF(OR(TBL_Summary[[#This Row],[ค่าใช้จ่ายโดยประมาณ]]="",TBL_Summary[[#This Row],[ค่าใช้จ่ายตามจริง]]=""),"",TBL_Summary[[#This Row],[ค่าใช้จ่ายโดยประมาณ]]-TBL_Summary[[#This Row],[ค่าใช้จ่ายตามจริง]]) ->  | F11: =TBL_Summary[[#This Row],[ค่าใช้จ่ายโดยประมาณ]]/SUM(TBL_Summary[ค่าใช้จ่ายโดยประมาณ]) -> 3.7% | J11: ของชำร่วยและของขวัญ | K11: =TBL_FavorsAndGifts[[#Totals],[โดยประมาณ]] -> 1100 | L11: =TBL_FavorsAndGifts[[#Totals],[ตามจริง]] -> 0 | M11: 1099.94 | N11: 6 | O11: 6 | P11: ของชำร่วยและของขวัญ
B12: =P12 -> แหวนแต่งงาน | C12: =VLOOKUP(TBL_Summary[[#This Row],[ประเภท]],TBL_RankingData,2,FALSE) -> ฿1,100 | D12: =IF(VLOOKUP(TBL_Summary[[#This Row],[ประเภท]],TBL_RankingData,3,FALSE)=0,"",VLOOKUP(TBL_Summary[[#This Row],[ประเภท]],TBL_RankingData,3,FALSE)) ->  | E12: =IF(OR(TBL_Summary[[#This Row],[ค่าใช้จ่ายโดยประมาณ]]="",TBL_Summary[[#This Row],[ค่าใช้จ่ายตามจริง]]=""),"",TBL_Summary[[#This Row],[ค่าใช้จ่ายโดยประมาณ]]-TBL_Summary[[#This Row],[ค่าใช้จ่ายตามจริง]]) ->  | F12: =TBL_Summary[[#This Row],[ค่าใช้จ่ายโดยประมาณ]]/SUM(TBL_Summary[ค่าใช้จ่ายโดยประมาณ]) -> 3.7% | J12: งานพิธี | K12: =TBL_Ceremony[[#Totals],[โดยประมาณ]] -> 800 | L12: =TBL_Ceremony[[#Totals],[ตามจริง]] -> 0 | M12: 799.93 | N12: 8 | O12: 7 | P12: แหวนแต่งงาน
B13: งานพิธี | C13: =VLOOKUP(TBL_Summary[[#This Row],[ประเภท]],TBL_RankingData,2,FALSE) -> ฿800 | D13: =IF(VLOOKUP(TBL_Summary[[#This Row],[ประเภท]],TBL_RankingData,3,FALSE)=0,"",VLOOKUP(TBL_Summary[[#This Row],[ประเภท]],TBL_RankingData,3,FALSE)) ->  | E13: =IF(OR(TBL_Summary[[#This Row],[ค่าใช้จ่ายโดยประมาณ]]="",TBL_Summary[[#This Row],[ค่าใช้จ่ายตามจริง]]=""),"",TBL_Summary[[#This Row],[ค่าใช้จ่ายโดยประมาณ]]-TBL_Summary[[#This Row],[ค่าใช้จ่ายตามจริง]]) ->  | F13: =TBL_Summary[[#This Row],[ค่าใช้จ่ายโดยประมาณ]]/SUM(TBL_Summary[ค่าใช้จ่ายโดยประมาณ]) -> 2.7% | J13: เครื่องเขียน | K13: =TBL_Stationery[[#Totals],[โดยประมาณ]] -> 500 | L13: =TBL_Stationery[[#Totals],[ตามจริง]] -> 0 | M13: 499.92 | N13: 9 | O13: 8 | P13: งานพิธี
B14: เครื่องเขียน | C14: =VLOOKUP(TBL_Summary[[#This Row],[ประเภท]],TBL_RankingData,2,FALSE) -> ฿500 | D14: =IF(VLOOKUP(TBL_Summary[[#This Row],[ประเภท]],TBL_RankingData,3,FALSE)=0,"",VLOOKUP(TBL_Summary[[#This Row],[ประเภท]],TBL_RankingData,3,FALSE)) ->  | E14: =IF(OR(TBL_Summary[[#This Row],[ค่าใช้จ่ายโดยประมาณ]]="",TBL_Summary[[#This Row],[ค่าใช้จ่ายตามจริง]]=""),"",TBL_Summary[[#This Row],[ค่าใช้จ่ายโดยประมาณ]]-TBL_Summary[[#This Row],[ค่าใช้จ่ายตามจริง]]) ->  | F14: =TBL_Summary[[#This Row],[ค่าใช้จ่ายโดยประมาณ]]/SUM(TBL_Summary[ค่าใช้จ่ายโดยประมาณ]) -> 1.7% | J14: แหวนแต่งงาน | K14: =TBL_WeddingRings[[#Totals],[โดยประมาณ]] -> 1100 | L14: =TBL_WeddingRings[[#Totals],[ตามจริง]] -> 0 | M14: 1099.91 | N14: 7 | O14: 9 | P14: เครื่องเขียน
B15: การเดินทาง | C15: =VLOOKUP(TBL_Summary[[#This Row],[ประเภท]],TBL_RankingData,2,FALSE) -> ฿450 | D15: =IF(VLOOKUP(TBL_Summary[[#This Row],[ประเภท]],TBL_RankingData,3,FALSE)=0,"",VLOOKUP(TBL_Summary[[#This Row],[ประเภท]],TBL_RankingData,3,FALSE)) ->  | E15: =IF(OR(TBL_Summary[[#This Row],[ค่าใช้จ่ายโดยประมาณ]]="",TBL_Summary[[#This Row],[ค่าใช้จ่ายตามจริง]]=""),"",TBL_Summary[[#This Row],[ค่าใช้จ่ายโดยประมาณ]]-TBL_Summary[[#This Row],[ค่าใช้จ่ายตามจริง]]) ->  | F15: =TBL_Summary[[#This Row],[ค่าใช้จ่ายโดยประมาณ]]/SUM(TBL_Summary[ค่าใช้จ่ายโดยประมาณ]) -> 1.5% | J15: การเดินทาง | K15: =TBL_Transportation[[#Totals],[โดยประมาณ]] -> 450 | L15: =TBL_Transportation[[#Totals],[ตามจริง]] -> 0 | M15: 449.9 | N15: 10 | O15: 10 | P15: การเดินทาง
B16: ผลรวม | C16: =SUBTOTAL(109,TBL_Summary[ค่าใช้จ่ายโดยประมาณ]) -> ฿29,750 | D16: =SUBTOTAL(109,TBL_Summary[ค่าใช้จ่ายตามจริง]) -> ฿15,700 | E16: =TBL_Summary[[#Totals],[ค่าใช้จ่ายโดยประมาณ]]-TBL_Summary[[#Totals],[ค่าใช้จ่ายตามจริง]] -> ฿14,050 | F16: =SUBTOTAL(109,TBL_Summary[% งบประมาณ]) -> 100%

Sheet รายละเอียดงบประมาณ
B2: รายละเอียดงบประมาณ
B4: แผนกต้อนรับ | C4: โดยประมาณ | D4: ตามจริง | E4: ผลต่าง
B5: สถานที่และค่าเช่า | C5: ฿8,000.00 | D5: ฿7,800.00 | E5: =IF(OR(TBL_Reception[[#This Row],[โดยประมาณ]]="",TBL_Reception[[#This Row],[ตามจริง]]=""),"",TBL_Reception[[#This Row],[โดยประมาณ]]-TBL_Reception[[#This Row],[ตามจริง]]) -> ฿200.00
B6: อาหารและบริการ | C6: ฿4,000.00 | D6: ฿4,200.00 | E6: =IF(OR(TBL_Reception[[#This Row],[โดยประมาณ]]="",TBL_Reception[[#This Row],[ตามจริง]]=""),"",TBL_Reception[[#This Row],[โดยประมาณ]]-TBL_Reception[[#This Row],[ตามจริง]]) -> -฿200.00
B7: เครื่องดื่ม | C7: ฿1,000.00 | D7: ฿800.00 | E7: =IF(OR(TBL_Reception[[#This Row],[โดยประมาณ]]="",TBL_Reception[[#This Row],[ตามจริง]]=""),"",TBL_Reception[[#This Row],[โดยประมาณ]]-TBL_Reception[[#This Row],[ตามจริง]]) -> ฿200.00
B8: เค้ก | C8: ฿1,000.00 | E8: =IF(OR(TBL_Reception[[#This Row],[โดยประมาณ]]="",TBL_Reception[[#This Row],[ตามจริง]]=""),"",TBL_Reception[[#This Row],[โดยประมาณ]]-TBL_Reception[[#This Row],[ตามจริง]]) -> 
B9: ค่าธรรมเนียมเบ็ดเตล็ด | C9: ฿500.00 | E9: =IF(OR(TBL_Reception[[#This Row],[โดยประมาณ]]="",TBL_Reception[[#This Row],[ตามจริง]]=""),"",TBL_Reception[[#This Row],[โดยประมาณ]]-TBL_Reception[[#This Row],[ตามจริง]]) -> 
B10: ผลรวมค่าใช้จ่ายแผนกต้อนรับ | C10: =SUBTOTAL(109,TBL_Reception[โดยประมาณ]) -> ฿14,500.00 | D10: =SUBTOTAL(109,TBL_Reception[ตามจริง]) -> ฿12,800.00 | E10: =TBL_Reception[[#Totals],[โดยประมาณ]]-TBL_Reception[[#Totals],[ตามจริง]] -> ฿1,700.00
B13: เครื่องแต่งกาย | C13: โดยประมาณ | D13: ตามจริง | E13: ผลต่าง
B14: ทักซ์, สูท, และ/หรือชุดเดรส | C14: ฿3,000.00 | D14: ฿2,900.00 | E14: =IF(OR(TBL_Attire[[#This Row],[โดยประมาณ]]="",TBL_Attire[[#This Row],[ตามจริง]]=""),"",TBL_Attire[[#This Row],[โดยประมาณ]]-TBL_Attire[[#This Row],[ตามจริง]]) -> ฿100.00
B15: แก้ชุด | C15: ฿100.00 | E15: =IF(OR(TBL_Attire[[#This Row],[โดยประมาณ]]="",TBL_Attire[[#This Row],[ตามจริง]]=""),"",TBL_Attire[[#This Row],[โดยประมาณ]]-TBL_Attire[[#This Row],[ตามจริง]]) -> 
B16: เครื่องประดับผมและผ้าคลุมหน้า | C16: ฿200.00 | E16: =IF(OR(TBL_Attire[[#This Row],[โดยประมาณ]]="",TBL_Attire[[#This Row],[ตามจริง]]=""),"",TBL_Attire[[#This Row],[โดยประมาณ]]-TBL_Attire[[#This Row],[ตามจริง]]) -> 
B17: เครื่องประดับ | C17: ฿100.00 | E17: =IF(OR(TBL_Attire[[#This Row],[โดยประมาณ]]="",TBL_Attire[[#This Row],[ตามจริง]]=""),"",TBL_Attire[[#This Row],[โดยประมาณ]]-TBL_Attire[[#This Row],[ตามจริง]]) -> 
B18: แต่งหน้าทำผม | C18: ฿500.00 | E18: =IF(OR(TBL_Attire[[#This Row],[โดยประมาณ]]="",TBL_Attire[[#This Row],[ตามจริง]]=""),"",TBL_Attire[[#This Row],[โดยประมาณ]]-TBL_Attire[[#This Row],[ตามจริง]]) -> 
B19: ค่าธรรมเนียมเบ็ดเตล็ด | C19: ฿100.00 | E19: =IF(OR(TBL_Attire[[#This Row],[โดยประมาณ]]="",TBL_Attire[[#This Row],[ตามจริง]]=""),"",TBL_Attire[[#This Row],[โดยประมาณ]]-TBL_Attire[[#This Row],[ตามจริง]]) -> 
B20: ผลรวมของเครื่องแต่งกาย | C20: =SUBTOTAL(109,TBL_Attire[โดยประมาณ]) -> ฿4,000.00 | D20: =SUBTOTAL(109,TBL_Attire[ตามจริง]) -> ฿2,900.00 | E20: =TBL_Attire[[#Totals],[โดยประมาณ]]-TBL_Attire[[#Totals],[ตามจริง]] -> ฿1,100.00
B23: ดอกไม้และการตกแต่ง | C23: โดยประมาณ | D23: ตามจริง | E23: ผลต่าง
B24: การจัดเตรียมดอกไม้สำหรับพิธี | C24: ฿1,000.00 | E24: =IF(OR(TBL_FlowersAndDecor[[#This Row],[โดยประมาณ]]="",TBL_FlowersAndDecor[[#This Row],[ตามจริง]]=""),"",TBL_FlowersAndDecor[[#This Row],[โดยประมาณ]]-TBL_FlowersAndDecor[[#This Row],[ตามจริง]]) -> 
B25: ดอกไม้และกระเช้าของเด็กผู้หญิง | C25: ฿500.00 | E25: =IF(OR(TBL_FlowersAndDecor[[#This Row],[โดยประมาณ]]="",TBL_FlowersAndDecor[[#This Row],[ตามจริง]]=""),"",TBL_FlowersAndDecor[[#This Row],[โดยประมาณ]]-TBL_FlowersAndDecor[[#This Row],[ตามจริง]]) -> 
B26: หมอนแหวน | C26: ฿100.00 | E26: =IF(OR(TBL_FlowersAndDecor[[#This Row],[โดยประมาณ]]="",TBL_FlowersAndDecor[[#This Row],[ตามจริง]]=""),"",TBL_FlowersAndDecor[[#This Row],[โดยประมาณ]]-TBL_FlowersAndDecor[[#This Row],[ตามจริง]]) -> 
B27: ช่อดอกไม้ | C27: ฿500.00 | E27: =IF(OR(TBL_FlowersAndDecor[[#This Row],[โดยประมาณ]]="",TBL_FlowersAndDecor[[#This Row],[ตามจริง]]=""),"",TBL_FlowersAndDecor[[#This Row],[โดยประมาณ]]-TBL_FlowersAndDecor[[#This Row],[ตามจริง]]) -> 
B28: ดอกไม้ติดปกเสื้อสุภาพบุรุษ | C28: ฿100.00 | E28: =IF(OR(TBL_FlowersAndDecor[[#This Row],[โดยประมาณ]]="",TBL_FlowersAndDecor[[#This Row],[ตามจริง]]=""),"",TBL_FlowersAndDecor[[#This Row],[โดยประมาณ]]-TBL_FlowersAndDecor[[#This Row],[ตามจริง]]) -> 
B29: ช่อดอกไม้กลัดหน้าอกสุภาพสตรี | C29: ฿200.00 | E29: =IF(OR(TBL_FlowersAndDecor[[#This Row],[โดยประมาณ]]="",TBL_FlowersAndDecor[[#This Row],[ตามจริง]]=""),"",TBL_FlowersAndDecor[[#This Row],[โดยประมาณ]]-TBL_FlowersAndDecor[[#This Row],[ตามจริง]]) -> 
B30: การตกแต่งแผนกต้อนรับ | C30: ฿300.00 | E30: =IF(OR(TBL_FlowersAndDecor[[#This Row],[โดยประมาณ]]="",TBL_FlowersAndDecor[[#This Row],[ตามจริง]]=""),"",TBL_FlowersAndDecor[[#This Row],[โดยประมาณ]]-TBL_FlowersAndDecor[[#This Row],[ตามจริง]]) -> 
B31: โคมไฟ | C31: ฿200.00 | E31: =IF(OR(TBL_FlowersAndDecor[[#This Row],[โดยประมาณ]]="",TBL_FlowersAndDecor[[#This Row],[ตามจริง]]=""),"",TBL_FlowersAndDecor[[#This Row],[โดยประมาณ]]-TBL_FlowersAndDecor[[#This Row],[ตามจริง]]) -> 
B32: ค่าธรรมเนียมเบ็ดเตล็ด | C32: ฿100.00 | E32: =IF(OR(TBL_FlowersAndDecor[[#This Row],[โดยประมาณ]]="",TBL_FlowersAndDecor[[#This Row],[ตามจริง]]=""),"",TBL_FlowersAndDecor[[#This Row],[โดยประมาณ]]-TBL_FlowersAndDecor[[#This Row],[ตามจริง]]) -> 
B33: ดอกไม้และการตกแต่ง | C33: =SUBTOTAL(109,TBL_FlowersAndDecor[โดยประมาณ]) -> ฿3,000.00 | D33: =SUBTOTAL(109,TBL_FlowersAndDecor[ตามจริง]) -> ฿0.00 | E33: =TBL_FlowersAndDecor[[#Totals],[โดยประมาณ]]-TBL_FlowersAndDecor[[#Totals],[ตามจริง]] -> ฿3,000.00
B36: ดนตรี | C36: โดยประมาณ | D36: ตามจริง | E36: ผลต่าง
B37: นักดนตรีสำหรับพิธีการ | C37: ฿700.00 | E37: =IF(OR(TBL_Music[[#This Row],[โดยประมาณ]]="",TBL_Music[[#This Row],[ตามจริง]]=""),"",TBL_Music[[#This Row],[โดยประมาณ]]-TBL_Music[[#This Row],[ตามจริง]]) -> 
B38: นักดนตรีสำหรับช่วงค๊อกเทล | C38: ฿300.00 | E38: =IF(OR(TBL_Music[[#This Row],[โดยประมาณ]]="",TBL_Music[[#This Row],[ตามจริง]]=""),"",TBL_Music[[#This Row],[โดยประมาณ]]-TBL_Music[[#This Row],[ตามจริง]]) -> 
B39: วงเปิด ดีเจ หรือความบันเทิงอื่น | C39: ฿200.00 | E39: =IF(OR(TBL_Music[[#This Row],[โดยประมาณ]]="",TBL_Music[[#This Row],[ตามจริง]]=""),"",TBL_Music[[#This Row],[โดยประมาณ]]-TBL_Music[[#This Row],[ตามจริง]]) -> 
B40: ระบบเสียงหรือค่าเช่าพื้นที่เต้นรำ | C40: ฿400.00 | E40: =IF(OR(TBL_Music[[#This Row],[โดยประมาณ]]="",TBL_Music[[#This Row],[ตามจริง]]=""),"",TBL_Music[[#This Row],[โดยประมาณ]]-TBL_Music[[#This Row],[ตามจริง]]) -> 
B41: ค่าธรรมเนียมเบ็ดเตล็ด | C41: ฿200.00 | E41: =IF(OR(TBL_Music[[#This Row],[โดยประมาณ]]="",TBL_Music[[#This Row],[ตามจริง]]=""),"",TBL_Music[[#This Row],[โดยประมาณ]]-TBL_Music[[#This Row],[ตามจริง]]) -> 
B42: ผลรวมของดนตรี | C42: =SUBTOTAL(109,TBL_Music[โดยประมาณ]) -> ฿1,800.00 | D42: =SUBTOTAL(109,TBL_Music[ตามจริง]) -> ฿0.00 | E42: =TBL_Music[[#Totals],[โดยประมาณ]]-TBL_Music[[#Totals],[ตามจริง]] -> ฿1,800.00
B45: การถ่ายภาพและวิดีโอ | C45: โดยประมาณ | D45: ตามจริง | E45: ผลต่าง
B46: การถ่ายภาพ | C46: ฿1,000.00 | E46: =IF(OR(TBL_PhotographsAndVideo[[#This Row],[โดยประมาณ]]="",TBL_PhotographsAndVideo[[#This Row],[ตามจริง]]=""),"",TBL_PhotographsAndVideo[[#This Row],[โดยประมาณ]]-TBL_PhotographsAndVideo[[#This Row],[ตามจริง]]) -> 
B47: การถ่ายวิดีโอ | C47: ฿800.00 | E47: =IF(OR(TBL_PhotographsAndVideo[[#This Row],[โดยประมาณ]]="",TBL_PhotographsAndVideo[[#This Row],[ตามจริง]]=""),"",TBL_PhotographsAndVideo[[#This Row],[โดยประมาณ]]-TBL_PhotographsAndVideo[[#This Row],[ตามจริง]]) -> 
B48: สิ่งพิมพ์และอัลบั้มเพิ่มเติม | C48: ฿500.00 | E48: =IF(OR(TBL_PhotographsAndVideo[[#This Row],[โดยประมาณ]]="",TBL_PhotographsAndVideo[[#This Row],[ตามจริง]]=""),"",TBL_PhotographsAndVideo[[#This Row],[โดยประมาณ]]-TBL_PhotographsAndVideo[[#This Row],[ตามจริง]]) -> 
B49: ค่าธรรมเนียมเบ็ดเตล็ด | C49: ฿200.00 | E49: =IF(OR(TBL_PhotographsAndVideo[[#This Row],[โดยประมาณ]]="",TBL_PhotographsAndVideo[[#This Row],[ตามจริง]]=""),"",TBL_PhotographsAndVideo[[#This Row],[โดยประมาณ]]-TBL_PhotographsAndVideo[[#This Row],[ตามจริง]]) -> 
B50: ผลรวมของการถ่ายภาพและวิดีโอ | C50: =SUBTOTAL(109,TBL_PhotographsAndVideo[โดยประมาณ]) -> ฿2,500.00 | D50: =SUBTOTAL(109,TBL_PhotographsAndVideo[ตามจริง]) -> ฿0.00 | E50: =TBL_PhotographsAndVideo[[#Totals],[โดยประมาณ]]-TBL_PhotographsAndVideo[[#Totals],[ตามจริง]] -> ฿2,500.00
B53: ของชำร่วยและของขวัญ | C53: โดยประมาณ | D53: ตามจริง | E53: ผลต่าง
B54: ของขวัญสำหรับต้อนรับ | C54: ฿700.00 | E54: =IF(OR(TBL_FavorsAndGifts[[#This Row],[โดยประมาณ]]="",TBL_FavorsAndGifts[[#This Row],[ตามจริง]]=""),"",TBL_FavorsAndGifts[[#This Row],[โดยประมาณ]]-TBL_FavorsAndGifts[[#This Row],[ตามจริง]]) -> 
B55: ของขวัญช่วงปาร์ตี้ | C55: ฿200.00 | E55: =IF(OR(TBL_FavorsAndGifts[[#This Row],[โดยประมาณ]]="",TBL_FavorsAndGifts[[#This Row],[ตามจริง]]=""),"",TBL_FavorsAndGifts[[#This Row],[โดยประมาณ]]-TBL_FavorsAndGifts[[#This Row],[ตามจริง]]) -> 
B56: ค่าธรรมเนียมเบ็ดเตล็ด | C56: ฿200.00 | E56: =IF(OR(TBL_FavorsAndGifts[[#This Row],[โดยประมาณ]]="",TBL_FavorsAndGifts[[#This Row],[ตามจริง]]=""),"",TBL_FavorsAndGifts[[#This Row],[โดยประมาณ]]-TBL_FavorsAndGifts[[#This Row],[ตามจริง]]) -> 
B57: ของชำร่วยและของขวัญ | C57: =SUBTOTAL(109,TBL_FavorsAndGifts[โดยประมาณ]) -> ฿1,100.00 | D57: =SUBTOTAL(109,TBL_FavorsAndGifts[ตามจริง]) -> ฿0.00 | E57: =TBL_FavorsAndGifts[[#Totals],[โดยประมาณ]]-TBL_FavorsAndGifts[[#Totals],[ตามจริง]] -> ฿1,100.00
B60: งานพิธี | C60: โดยประมาณ | D60: ตามจริง | E60: ผลต่าง
B61: ค่าธรรมเนียมสถานที่ | C61: ฿500.00 | E61: =IF(OR(TBL_Ceremony[[#This Row],[โดยประมาณ]]="",TBL_Ceremony[[#This Row],[ตามจริง]]=""),"",TBL_Ceremony[[#This Row],[โดยประมาณ]]-TBL_Ceremony[[#This Row],[ตามจริง]]) -> 
B62: ค่าธรรมเนียมผู้ประกอบพิธี หรือบริจาคให้โบสถ์ | C62: ฿200.00 | E62: =IF(OR(TBL_Ceremony[[#This Row],[โดยประมาณ]]="",TBL_Ceremony[[#This Row],[ตามจริง]]=""),"",TBL_Ceremony[[#This Row],[โดยประมาณ]]-TBL_Ceremony[[#This Row],[ตามจริง]]) -> 
B63: ค่าธรรมเนียมเบ็ดเตล็ด | C63: ฿100.00 | E63: =IF(OR(TBL_Ceremony[[#This Row],[โดยประมาณ]]="",TBL_Ceremony[[#This Row],[ตามจริง]]=""),"",TBL_Ceremony[[#This Row],[โดยประมาณ]]-TBL_Ceremony[[#This Row],[ตามจริง]]) -> 
B64: ผลรวมของงานพิธี | C64: =SUBTOTAL(109,TBL_Ceremony[โดยประมาณ]) -> ฿800.00 | D64: =SUBTOTAL(109,TBL_Ceremony[ตามจริง]) -> ฿0.00 | E64: =TBL_Ceremony[[#Totals],[โดยประมาณ]]-TBL_Ceremony[[#Totals],[ตามจริง]] -> ฿800.00
B67: เครื่องเขียน | C67: โดยประมาณ | D67: ตามจริง | E67: ผลต่าง
B68: การ์ดแจ้งวันงาน | C68: ฿50.00 | E68: =IF(OR(TBL_Stationery[[#This Row],[โดยประมาณ]]="",TBL_Stationery[[#This Row],[ตามจริง]]=""),"",TBL_Stationery[[#This Row],[โดยประมาณ]]-TBL_Stationery[[#This Row],[ตามจริง]]) -> 
B69: การเชิญและ RSVPs | C69: ฿100.00 | E69: =IF(OR(TBL_Stationery[[#This Row],[โดยประมาณ]]="",TBL_Stationery[[#This Row],[ตามจริง]]=""),"",TBL_Stationery[[#This Row],[โดยประมาณ]]-TBL_Stationery[[#This Row],[ตามจริง]]) -> 
B70: โปรแกรม | C70: ฿50.00 | E70: =IF(OR(TBL_Stationery[[#This Row],[โดยประมาณ]]="",TBL_Stationery[[#This Row],[ตามจริง]]=""),"",TBL_Stationery[[#This Row],[โดยประมาณ]]-TBL_Stationery[[#This Row],[ตามจริง]]) -> 
B71: การ์ดที่นั่งและสถานที่ | C71: ฿50.00 | E71: =IF(OR(TBL_Stationery[[#This Row],[โดยประมาณ]]="",TBL_Stationery[[#This Row],[ตามจริง]]=""),"",TBL_Stationery[[#This Row],[โดยประมาณ]]-TBL_Stationery[[#This Row],[ตามจริง]]) -> 
B72: การ์ดเมนู | C72: ฿50.00 | E72: =IF(OR(TBL_Stationery[[#This Row],[โดยประมาณ]]="",TBL_Stationery[[#This Row],[ตามจริง]]=""),"",TBL_Stationery[[#This Row],[โดยประมาณ]]-TBL_Stationery[[#This Row],[ตามจริง]]) -> 
B73: การ์ดขอบคุณ | C73: ฿50.00 | E73: =IF(OR(TBL_Stationery[[#This Row],[โดยประมาณ]]="",TBL_Stationery[[#This Row],[ตามจริง]]=""),"",TBL_Stationery[[#This Row],[โดยประมาณ]]-TBL_Stationery[[#This Row],[ตามจริง]]) -> 
B74: ค่าไปรษณีย์ | C74: ฿50.00 | E74: =IF(OR(TBL_Stationery[[#This Row],[โดยประมาณ]]="",TBL_Stationery[[#This Row],[ตามจริง]]=""),"",TBL_Stationery[[#This Row],[โดยประมาณ]]-TBL_Stationery[[#This Row],[ตามจริง]]) -> 
B75: ค่าธรรมเนียมเบ็ดเตล็ด | C75: ฿100.00 | E75: =IF(OR(TBL_Stationery[[#This Row],[โดยประมาณ]]="",TBL_Stationery[[#This Row],[ตามจริง]]=""),"",TBL_Stationery[[#This Row],[โดยประมาณ]]-TBL_Stationery[[#This Row],[ตามจริง]]) -> 
B76: ผลรวมของเครื่องเขียน | C76: =SUBTOTAL(109,TBL_Stationery[โดยประมาณ]) -> ฿500.00 | D76: =SUBTOTAL(109,TBL_Stationery[ตามจริง]) -> ฿0.00 | E76: =TBL_Stationery[[#Totals],[โดยประมาณ]]-TBL_Stationery[[#Totals],[ตามจริง]] -> ฿500.00
B79: แหวนแต่งงาน | C79: โดยประมาณ | D79: ตามจริง | E79: ผลต่าง
B80: แหวนแต่งงาน | C80: ฿1,000.00 | E80: =IF(OR(TBL_WeddingRings[[#This Row],[โดยประมาณ]]="",TBL_WeddingRings[[#This Row],[ตามจริง]]=""),"",TBL_WeddingRings[[#This Row],[โดยประมาณ]]-TBL_WeddingRings[[#This Row],[ตามจริง]]) -> 
B81: เครื่องประดับแหวน | C81: ฿100.00 | E81: =IF(OR(TBL_WeddingRings[[#This Row],[โดยประมาณ]]="",TBL_WeddingRings[[#This Row],[ตามจริง]]=""),"",TBL_WeddingRings[[#This Row],[โดยประมาณ]]-TBL_WeddingRings[[#This Row],[ตามจริง]]) -> 
B82: ผลรวมของแหวนแต่งงาน | C82: =SUBTOTAL(109,TBL_WeddingRings[โดยประมาณ]) -> ฿1,100.00 | D82: =SUBTOTAL(109,TBL_WeddingRings[ตามจริง]) -> ฿0.00 | E82: =TBL_WeddingRings[[#Totals],[โดยประมาณ]]-TBL_WeddingRings[[#Totals],[ตามจริง]] -> ฿1,100.00
B85: การเดินทาง | C85: โดยประมาณ | D85: ตามจริง | E85: ผลต่าง
B86: เช่ารถยนต์บ่าวสาว | C86: ฿100.00 | E86: =IF(OR(TBL_Transportation[[#This Row],[โดยประมาณ]]="",TBL_Transportation[[#This Row],[ตามจริง]]=""),"",TBL_Transportation[[#This Row],[โดยประมาณ]]-TBL_Transportation[[#This Row],[ตามจริง]]) -> 
B87: เช่ารถยนต์สำหรับแขก | C87: ฿100.00 | E87: =IF(OR(TBL_Transportation[[#This Row],[โดยประมาณ]]="",TBL_Transportation[[#This Row],[ตามจริง]]=""),"",TBL_Transportation[[#This Row],[โดยประมาณ]]-TBL_Transportation[[#This Row],[ตามจริง]]) -> 
B88: การเดินทางสำหรับแขกต่างเมือง | C88: ฿100.00 | E88: =IF(OR(TBL_Transportation[[#This Row],[โดยประมาณ]]="",TBL_Transportation[[#This Row],[ตามจริง]]=""),"",TBL_Transportation[[#This Row],[โดยประมาณ]]-TBL_Transportation[[#This Row],[ตามจริง]]) -> 
B89: บริการนำรถไปจอด | C89: ฿50.00 | E89: =IF(OR(TBL_Transportation[[#This Row],[โดยประมาณ]]="",TBL_Transportation[[#This Row],[ตามจริง]]=""),"",TBL_Transportation[[#This Row],[โดยประมาณ]]-TBL_Transportation[[#This Row],[ตามจริง]]) -> 
B90: ค่าธรรมเนียมเบ็ดเตล็ด | C90: ฿100.00 | E90: =IF(OR(TBL_Transportation[[#This Row],[โดยประมาณ]]="",TBL_Transportation[[#This Row],[ตามจริง]]=""),"",TBL_Transportation[[#This Row],[โดยประมาณ]]-TBL_Transportation[[#This Row],[ตามจริง]]) -> 
B91: ผลรวมของการเดินทาง | C91: =SUBTOTAL(109,TBL_Transportation[โดยประมาณ]) -> ฿450.00 | D91: =SUBTOTAL(109,TBL_Transportation[ตามจริง]) -> ฿0.00 | E91: =TBL_Transportation[[#Totals],[โดยประมาณ]]-TBL_Transportation[[#Totals],[ตามจริง]] -> ฿450.00
